fUSD/lending_fUSD_20250804
["ID","MTS","AMOUNT","RATE_DAILY","PERIOD"]
[377170048,1754266268696,-641.45,0.00049863,120]
[377170049,1754266268706,-1018.34,0.00049863,120]
[377170050,1754266268715,-400.0,0.00049863,120]
[377170051,1754266268724,-400.0,0.00049863,120]
[377170052,1754266268734,-804.57,0.00049863,120]
[377170053,1754266268743,-689.84,0.00049863,120]
[377170054,1754266268753,-456.99,0.00049863,120]
[377170055,1754266268762,-1009.49,0.00049863,120]
[377170056,1754266268772,-400.0,0.00049863,120]
[377170057,1754266268781,-400.0,0.00049863,120]
[377170058,1754266268791,-574.89,0.00049863,120]
[377170059,1754266268800,-400.0,0.00049863,120]
[377170060,1754266268810,-400.0,0.00049863,120]
[377170061,1754266268820,-527.37660248,0.00049863,120]
[377170062,1754266268830,-400.0,0.00049863,120]
[377170063,1754266268839,-611.13,0.00049863,120]
[377170064,1754266268848,-400.0,0.00049863,120]
[377170065,1754266268858,-400.0,0.00049863,120]
[377170066,1754266268867,-400.0,0.00049863,120]
[377170067,1754266268876,-1183.69,0.00049863,120]
[377170068,1754266268885,-940.95,0.00049863,120]
[377170069,1754266268894,-594.33,0.00049863,120]
[377170070,1754266268903,-421.41,0.00049863,120]
[377170071,1754266268913,-704.1,0.00049863,120]
[377170072,1754266268923,-950.98,0.00049863,120]
[377170073,1754266268932,-901.35,0.00049863,120]
[377170074,1754266268942,-1019.94,0.00049863,120]
[377170075,1754266268951,-657.96,0.00049863,120]
[377170076,1754266268960,-238.53255444,0.00049863,120]
[377170077,1754266268970,-400.0,0.00049863,120]
[377170078,1754266268980,-632.37,0.00049863,120]
[377170079,1754266268991,-400.0,0.00049863,120]
[377170080,1754266269001,-400.0,0.00049863,120]
[377170081,1754266269010,-687.15,0.00049863,120]
[377170082,1754266269020,-400.0,0.00049863,120]
[377170083,1754266269029,-557.5,0.00049863,120]
[377170084,1754266269039,-400.0,0.00049863,120]
[377170085,1754266269048,-992.38,0.00049863,120]
[377170086,1754266269058,-490.46041485,0.00049863,120]
[377170087,1754266269067,-529.68,0.00049863,120]
[377170088,1754266269076,-1191.75,0.00049863,120]
[377170089,1754266269085,-1612.16,0.00049863,120]
[377170090,1754266269094,-650.27,0.00049863,120]
[377170091,1754266269103,-400.0,0.00049863,120]
[377170092,1754266269112,-872.85,0.00049863,120]
[377170093,1754266269121,-400.0,0.00049863,120]
[377170094,1754266269131,-549.06,0.00049863,120]
[377170095,1754266269140,-808.65,0.00049863,120]
[377170096,1754266269150,-291.23584576,0.00049863,120]
[377170097,1754266269159,-881.83,0.00049863,120]
[377170098,1754266269169,-400.0,0.00049863,120]
[377170099,1754266269178,-400.0,0.00049863,120]
[377170100,1754266269188,-616.24,0.00049863,120]
[377170101,1754266269199,-400.0,0.00049863,120]
[377170102,1754266269209,-400.0,0.00049863,120]
[377170103,1754266269218,-400.0,0.00049863,120]
[377170104,1754266269227,-400.0,0.00049863,120]
[377170105,1754266269237,-400.0,0.00049863,120]
[377170106,1754266269248,-400.0,0.00049863,120]
[377170107,1754266269257,-927.89,0.00049863,120]
[377170108,1754266269269,-996.8,0.00049863,120]
[377170109,1754266269279,-407.60741431,0.00049863,120]
[377170110,1754266269288,-4720.31,0.00049863,120]
[377170111,1754266269298,-480.32,0.00049863,120]
[377170112,1754266269308,-458.53,0.00049863,120]
[377170113,1754266269317,-461.86,0.00049863,120]
[377170114,1754266269327,-400.0,0.00049863,120]
[377170115,1754266269337,-4894.61,0.00049863,120]
[377170116,1754266269347,-400.0,0.00049863,120]
[377170117,1754266269356,-400.0,0.00049863,120]
[377170118,1754266269366,-400.0,0.00049863,120]
[377170119,1754266269375,-674.67,0.00049863,120]
[377170120,1754266269386,-1033.94,0.00049863,120]
[377170121,1754266269395,-816.6,0.00049863,120]
[377170122,1754266269404,-925.44,0.00049863,120]
[377170123,1754266269414,-400.0,0.00049863,120]
[377170124,1754266269423,-400.0,0.00049863,120]
[377170125,1754266269432,-698.79,0.00049863,120]
[377170126,1754266269442,-400.0,0.00049863,120]
[377170127,1754266269451,-1162.3,0.00049863,120]
[377170128,1754266269460,-536.25,0.00049863,120]
[377170129,1754266269470,-400.0,0.00049863,120]
[377170130,1754266269479,-400.0,0.00049863,120]
[377170131,1754266269489,-769.97,0.00049863,120]
[377170132,1754266269499,-400.0,0.00049863,120]
[377170133,1754266269509,-833.01,0.00049863,120]
[377170134,1754266269519,-453.6,0.00049863,120]
[377170135,1754266269528,-400.0,0.00049863,120]
[377170136,1754266269537,-400.0,0.00049863,120]
[377170137,1754266269547,-400.0,0.00049863,120]
[377170138,1754266269556,-1111.54,0.00049863,120]
[377170139,1754266269565,-556.87,0.00049863,120]
[377170140,1754266269575,-400.0,0.00049863,120]
[377170141,1754266269585,-1730.61,0.00049863,120]
[377170142,1754266269600,-899.69,0.00049863,120]
[377170143,1754266269612,-400.0,0.00049863,120]
[377170144,1754266269622,-732.85,0.00049863,120]
[377170145,1754266269631,-1461.35,0.00049863,120]
[377170146,1754266269641,-590.27,0.00049863,120]
[377170147,1754266269650,-461.89014116,0.00049863,120]
[377170148,1754266269659,-901.32,0.00049863,120]
[377170149,1754266269669,-901.95,0.00049863,120]
[377170150,1754266269678,-400.0,0.00049863,120]
[377170151,1754266269687,-400.0,0.00049863,120]
[377170152,1754266269697,-723.26,0.00049863,120]
[377170153,1754266269706,-400.0,0.00049863,120]
[377170154,1754266269715,-1592.92,0.00049863,120]
[377170155,1754266270010,-673.26,0.00049863,120]
[377170156,1754266270021,-400.0,0.00049863,120]
[377170157,1754266270030,-400.0,0.00049863,120]
[377170158,1754266270040,-412.28,0.00049863,60]
[377170159,1754266270049,-1601.2,0.00049863,120]
[377170160,1754266270058,-706.22,0.00049863,120]
[377170161,1754266270067,-400.0,0.00049863,120]
[377170162,1754266270077,-400.0,0.00049863,120]
[377170163,1754266270087,-400.0,0.00049863,120]
[377170164,1754266270096,-400.0,0.00049863,120]
[377170165,1754266270106,-203.99371781,0.00049863,120]
[377170166,1754266270115,-400.0,0.00049863,120]
[377170167,1754266270125,-912.88,0.00049863,120]
[377170168,1754266270134,-949.81,0.00049863,120]
[377170169,1754266270144,-949.81,0.00049863,120]
[377170170,1754266270154,-400.0,0.00049863,120]
[377170171,1754266270163,-400.0,0.00049863,120]
[377170172,1754266270172,-1484.94,0.00049863,120]
[377170173,1754266270182,-1173.53,0.00049863,120]
[377170174,1754266270195,-400.0,0.00049863,120]
[377170175,1754266270204,-400.0,0.00049863,120]
[377170176,1754266270214,-2314.15,0.00049863,120]
[377170177,1754266270223,-492.77,0.00049863,120]
[377170178,1754266270233,-400.0,0.00049863,120]
[377170179,1754266270244,-400.0,0.00049863,120]
[377170180,1754266270254,-400.0,0.00049863,120]
[377170181,1754266270263,-1462.45,0.00049863,120]
[377170182,1754266270274,-1400.23,0.00049863,120]
[377170183,1754266270283,-647.53,0.00049863,120]
[377170184,1754266270293,-1341.89,0.00049863,120]
[377170185,1754266270302,-1068.21,0.00049863,120]
[377170186,1754266270311,-5234.91,0.00049863,120]
[377170187,1754266270321,-1119.42,0.00049863,120]
[377170188,1754266270330,-400.0,0.00049863,120]
[377170189,1754266270340,-300.0,0.00049863,120]
[377170190,1754266270350,-1331.67,0.00049863,120]
[377170191,1754266270360,-1328.2,0.00049863,120]
[377170192,1754266270376,-400.0,0.00049863,120]
[377170193,1754266270386,-1001.16,0.00049863,120]
[377170194,1754266270395,-571.91,0.00049863,120]
[377170195,1754266270404,-546.14822855,0.00049863,120]
[377170196,1754266270413,-955.48,0.00049863,120]
[377170197,1754266270423,-409.14,0.00049863,120]
[377170198,1754266270433,-1005.19,0.00049863,120]
[377170199,1754266270443,-1578.35,0.00049863,120]
[377170200,1754266270452,-598.03,0.00049863,120]
[377170201,1754266270462,-675.29,0.00049863,120]
[377170202,1754266270471,-400.0,0.00049863,120]
[377170203,1754266270480,-400.0,0.00049863,120]
[377170204,1754266270489,-817.11,0.00049863,120]
[377170205,1754266270500,-870.48,0.00049863,120]
[377170206,1754266270509,-400.0,0.00049863,120]
[377170207,1754266270519,-523.8,0.00049863,120]
[377170208,1754266270528,-400.0,0.00049863,120]
[377170209,1754266270538,-1073.59,0.00049863,120]
[377170210,1754266270547,-653.93,0.00049863,120]
[377170211,1754266270557,-524.6,0.00049863,120]
[377170212,1754266270566,-493.21,0.00049863,120]
[377170213,1754266270576,-400.0,0.00049863,120]
[377170214,1754266270585,-1126.78,0.00049863,120]
[377170215,1754266270595,-400.0,0.00049863,120]
[377170216,1754266270604,-1000.0,0.00049863,120]
[377170217,1754266270613,-415.07,0.00049863,120]
[377170218,1754266270623,-604.01,0.00049863,120]
[377170219,1754266270632,-977.29,0.00049863,120]
[377170220,1754266270642,-534.65,0.00049863,120]
[377170221,1754266270651,-400.0,0.00049863,120]
[377170222,1754266270660,-400.0,0.00049863,120]
[377170223,1754266270670,-1489.88,0.00049863,120]
[377170224,1754266270679,-400.0,0.00049863,120]
[377170225,1754266270688,-400.0,0.00049863,120]
[377170226,1754266270698,-400.0,0.00049863,120]
[377170227,1754266270707,-272.97700167,0.00049863,120]
[377170228,1754266270716,-400.0,0.00049863,120]
[377170229,1754266270726,-400.0,0.00049863,120]
[377170230,1754266270735,-400.0,0.00049863,120]
[377170231,1754266270745,-400.0,0.00049863,120]
[377170232,1754266270754,-474.72,0.00049863,120]
[377170233,1754266270763,-581.15,0.00049863,120]
[377170234,1754266270773,-438.5,0.00049863,120]
[377170235,1754266270782,-5373.27,0.00049863,120]
[377170236,1754266270791,-400.0,0.00049863,120]
[377170237,1754266270801,-400.0,0.00049863,120]
[377170238,1754266270811,-721.19,0.00049863,120]
[377170239,1754266270820,-3835.37,0.00049863,120]
[377170240,1754266270829,-834.22,0.00049863,120]
[377170241,1754266270838,-716.24,0.00049863,120]
[377170242,1754266270847,-1134.6,0.00049863,120]
[377170243,1754266270856,-400.0,0.00049863,120]
[377170244,1754266270866,-400.0,0.00049863,120]
[377170245,1754266270875,-400.0,0.00049863,120]
[377170246,1754266270885,-1049.57,0.00049863,120]
[377170247,1754266270894,-400.0,0.00049863,120]
[377170248,1754266270903,-400.0,0.00049863,120]
[377170249,1754266270913,-587.26,0.00049863,120]
[377170250,1754266270922,-400.0,0.00049863,120]
[377170251,1754266270931,-2012.25,0.00049863,120]
[377170252,1754266270940,-400.0,0.00049863,120]
[377170253,1754266270950,-567.39,0.00049863,120]
[377170254,1754266270959,-1390.5,0.00049863,120]
[377170255,1754266270968,-400.0,0.00049863,120]
[377170256,1754266270977,-210.08503914,0.00049863,120]
[377170257,1754266270986,-539.14,0.00049863,120]
[377170258,1754266270996,-400.0,0.00049863,120]
[377170259,1754266271006,-200.93166831,0.00049863,120]
[377170260,1754266271015,-400.0,0.00049863,120]
[377170261,1754266271024,-682.42,0.00049863,120]
[377170262,1754266271034,-1877.89,0.00049863,120]
[377170263,1754266271043,-400.0,0.00049863,120]
[377170264,1754266271053,-891.04,0.00049863,120]
[377170265,1754266271062,-400.0,0.00049863,120]
[377170266,1754266271071,-400.0,0.00049863,120]
[377170267,1754266271081,-808.31,0.00049863,120]
[377170268,1754266271090,-400.0,0.00049863,120]
[377170269,1754266271099,-476.3,0.00049863,120]
[377170270,1754266271108,-400.0,0.00049863,120]
[377170271,1754266271117,-400.0,0.00049863,120]
[377170272,1754266271127,-538.34,0.00049863,120]
[377170273,1754266271136,-1187.72,0.00049863,120]
[377170274,1754266271145,-965.14,0.00049863,120]
[377170275,1754266271155,-419.41,0.00049863,120]
[377170276,1754266271164,-400.0,0.00049863,120]
[377170277,1754266271173,-417.19,0.00049863,120]
[377170278,1754266271183,-400.0,0.00049863,120]
[377170279,1754266271196,-400.0,0.00049863,120]
[377170280,1754266271205,-1401.09,0.00049863,14]
[377170281,1754266271214,-400.0,0.00049863,120]
[377170282,1754266271224,-400.0,0.00049863,120]
[377170283,1754266271240,-400.0,0.00049863,120]
[377170284,1754266271252,-400.0,0.00049863,120]
[377170285,1754266271261,-400.0,0.00049863,120]
[377170286,1754266271272,-721.72,0.00049863,120]
[377170287,1754266271282,-400.0,0.00049863,120]
[377170288,1754266271297,-166.53367538,0.00049863,120]
[377170289,1754266271307,-1155.19,0.00049863,120]
[377170290,1754266271317,-400.0,0.00049863,120]
[377170291,1754266271327,-400.0,0.00049863,120]
[377170292,1754266271336,-400.0,0.00049863,120]
[377170293,1754266271346,-723.66,0.00049863,120]
[377170294,1754266271355,-439.33,0.00049863,120]
[377170295,1754266271365,-1229.41,0.00049863,120]
[377170296,1754266271374,-400.0,0.00049863,120]
[377170297,1754266271384,-400.0,0.00049863,120]
[377170298,1754266271393,-217.42974728,0.00049863,120]
[377170299,1754266271403,-400.0,0.00049863,120]
[377170300,1754266271412,-400.0,0.00049863,120]
[377170301,1754266271421,-1673.0,0.00049863,120]
[377170302,1754266271431,-400.0,0.00049863,120]
[377170303,1754266271441,-531.36586052,0.00049863,120]
[377170304,1754266271450,-400.0,0.00049863,120]
[377170305,1754266271459,-473.61,0.00049863,120]
[377170306,1754266271469,-699.31,0.00049863,120]
[377170307,1754266271479,-445.41104493,0.00049863,120]
[377170308,1754266271489,-510.4,0.00049863,120]
[377170309,1754266271499,-400.0,0.00049863,120]
[377170310,1754266271508,-400.0,0.00049863,120]
[377170311,1754266271518,-482.29,0.00049863,120]
[377170312,1754266271528,-735.11,0.00049863,120]
[377170313,1754266271537,-1502.49,0.00049863,120]
[377170314,1754266271547,-1013.66,0.00049863,120]
[377170315,1754266271556,-2886.78,0.00049863,120]
[377170316,1754266271566,-2668.08,0.00049863,120]
[377170317,1754266271575,-1392.39,0.00049863,120]
[377170318,1754266271585,-400.0,0.00049863,120]
[377170319,1754266271595,-400.0,0.00049863,120]
[377170320,1754266271604,-500.0,0.00049863,120]
[377170321,1754266271613,-875.34,0.00049863,120]
[377170322,1754266271622,-400.0,0.00049863,120]
[377170323,1754266271632,-402.2953279,0.00049863,120]
[377170324,1754266271642,-1070.15,0.00049863,120]
[377170325,1754266271651,-510.32,0.00049863,120]
[377170326,1754266271660,-1043.21,0.00049863,120]
[377170327,1754266271669,-400.0,0.00049863,120]
[377170328,1754266271679,-400.0,0.00049863,120]
[377170329,1754266271688,-939.51,0.00049863,120]
[377170330,1754266271697,-334.38775601,0.00049863,120]
[377170331,1754266271706,-400.0,0.00049863,120]
[377170332,1754266271716,-400.0,0.00049863,120]
[377170333,1754266271725,-400.0,0.00049863,120]
[377170334,1754266271734,-400.0,0.00049863,120]
[377170335,1754266271743,-400.0,0.00049863,120]
[377170336,1754266271754,-1204.62,0.00049863,120]
[377170337,1754266271763,-400.0,0.00049863,120]
[377170338,1754266271772,-400.0,0.00049863,120]
[377170339,1754266271781,-1931.51,0.00049863,120]
[377170340,1754266271791,-400.0,0.00049863,120]
[377170341,1754266271801,-400.0,0.00049863,120]
[377170342,1754266271810,-470.9,0.00049863,120]
[377170343,1754266271821,-957.13,0.00049863,120]
[377170344,1754266271830,-400.0,0.00049863,120]
[377170345,1754266271842,-814.96,0.00049863,120]
[377170346,1754266271851,-1167.61,0.00049863,120]
[377170347,1754266271860,-400.0,0.00049863,120]
[377170348,1754266271869,-563.89,0.00049863,120]
[377170349,1754266271878,-1397.09,0.00049863,120]
[377170350,1754266271888,-400.0,0.00049863,120]
[377170351,1754266271897,-3628.27,0.00049863,118]
[377170352,1754266271907,-487.86,0.00049863,120]
[377170353,1754266271916,-480.0,0.00049863,120]
[377170354,1754266271925,-175.07734279,0.00049863,120]
[377170355,1754266271935,-2413.8,0.00049863,120]
[377170356,1754266271944,-907.23,0.00049863,120]
[377170357,1754266271955,-449.94,0.00049863,120]
[377170358,1754266271964,-400.0,0.00049863,120]
[377170359,1754266271973,-400.0,0.00049863,120]
[377170360,1754266271984,-400.0,0.00049863,120]
[377170361,1754266271994,-400.0,0.00049863,120]
[377170362,1754266272004,-607.01,0.00049863,120]
[377170363,1754266272014,-400.0,0.00049863,120]
[377170364,1754266272023,-400.0,0.00049863,120]
[377170365,1754266272032,-400.0,0.00049863,120]
[377170366,1754266272042,-435.62,0.00049863,120]
[377170367,1754266272051,-400.0,0.00049863,120]
[377170368,1754266272060,-448.72,0.00049863,120]
[377170369,1754266272069,-753.47,0.00049863,120]
[377170370,1754266272078,-510.59,0.00049863,120]
[377170371,1754266272087,-940.38,0.00049863,120]
[377170372,1754266272096,-1060.88,0.00049863,120]
[377170373,1754266272105,-196.29862042,0.00049863,120]
[377170374,1754266272113,-400.0,0.00049863,120]
[377170375,1754266272123,-1682.96,0.00049863,120]
[377170376,1754266272132,-424.27,0.00049863,120]
[377170377,1754266272141,-612.85,0.00049863,120]
[377170378,1754266272150,-400.0,0.00049863,120]
[377170379,1754266272160,-400.0,0.00049863,120]
[377170380,1754266272169,-400.0,0.00049863,120]
[377170381,1754266272179,-400.0,0.00049863,120]
[377170382,1754266272189,-3391.8,0.00049863,120]
[377170383,1754266272202,-515.49237525,0.00049863,120]
[377170384,1754266272211,-27206.45,0.00049863,120]
[377170385,1754266272221,-1092.01,0.00049863,120]
[377170386,1754266272231,-400.0,0.00049863,120]
[377170387,1754266272240,-241.97673395,0.00049863,120]
[377170388,1754266272250,-400.0,0.00049863,120]
[377170389,1754266272259,-201.51089526,0.000499,120]
[377170390,1754266272270,-515.0,0.0004998,10]
[377170391,1754266272280,-50000.0,0.0005,50]
[377170392,1754266272289,-50000.0,0.0005,51]
[377170393,1754266272299,-50000.0,0.0005,52]
[377170394,1754266272308,-50000.0,0.0005,53]
[377170395,1754266272318,-50000.0,0.0005,54]
[377170396,1754266272327,-50000.0,0.0005,55]
[377170397,1754266272337,-50000.0,0.0005,56]
[377170398,1754266272349,-50000.0,0.0005,57]
[377170399,1754266272359,-50000.0,0.0005,58]
[377170400,1754266272367,-50000.0,0.0005,59]
[377170401,1754266272376,-200.766738,0.0005,120]
[377170402,1754266272385,-200.766738,0.0005,120]
[377170403,1754266272395,-231.337973,0.0005,120]
[377170404,1754266272404,-151.0,0.0005,120]
[377170405,1754266272413,-151.0,0.0005,120]
[377170406,1754266272422,-841.41768095,0.0005,120]
[377170407,1754266272431,-2000000.0,0.0005,120]
[377170408,1754266272441,-1000000.0,0.0005,120]
[377170409,1754266272452,-3014.35460116,0.0005,120]
[377170410,1754266272461,-4000.0,0.0005,120]
[377170411,1754266272470,-2000.0,0.0005,120]
[377170412,1754266272480,-4000.0,0.0005,120]
[377170413,1754266272489,-276000.0,0.0005,120]
[377170414,1754266272499,-1000.0,0.0005,120]
[377170415,1754266272509,-500.0,0.0005,10]
[377170416,1754266272518,-79071.0,0.00050027,120]
[377170417,1754266272527,-9692.03,0.00050042,120]
[377170418,1754266272536,-150.0,0.00050053,7]
[377170419,1754266272545,-200.766738,0.00050136,120]
[377170420,1754266272555,-200.766738,0.00050136,120]
[377170421,1754266272564,-151.0,0.00050136,120]
[377170422,1754266272573,-240.252584,0.00050136,120]
[377170423,1754266272583,-400.0,0.00050136,120]
[377170424,1754266272592,-400.0,0.00050136,120]
[377170425,1754266272602,-1068.84,0.00050136,120]
[377170426,1754266272611,-571.69,0.00050136,120]
[377170427,1754266272620,-400.0,0.00050136,120]
[377170428,1754266272629,-400.0,0.00050136,120]
[377170429,1754266272639,-1099.65,0.00050136,120]
[377170430,1754266272648,-566.06,0.00050136,120]
[377170431,1754266272663,-458.21,0.00050136,120]
[377170432,1754266272672,-158.68582358,0.00050136,120]
[377170433,1754266272681,-400.0,0.00050136,120]
[377170434,1754266272690,-400.0,0.00050136,120]
[377170435,1754266272699,-470.4391382,0.00050136,120]
[377170436,1754266272709,-870.993468,0.00050136,120]
[377170437,1754266272718,-400.0,0.00050136,120]
[377170438,1754266272728,-400.0,0.00050136,120]
[377170439,1754266272737,-720.227613,0.00050136,120]
[377170440,1754266272746,-940.144052,0.00050136,120]
[377170441,1754266272755,-400.0,0.00050136,120]
[377170442,1754266272764,-1147.18,0.00050136,120]
[377170443,1754266272774,-1083.39,0.00050136,120]
[377170444,1754266272783,-423.23,0.00050136,30]
[377170445,1754266272792,-553.68,0.00050136,120]
[377170446,1754266272802,-154.865789,0.00050136,120]
[377170447,1754266272811,-190.66426237,0.00050136,120]
[377170448,1754266272820,-400.0,0.00050136,120]
[377170449,1754266272829,-400.0,0.00050136,120]
[377170450,1754266272839,-400.0,0.00050136,120]
[377170451,1754266272848,-400.0,0.00050136,120]
[377170452,1754266272857,-638.26,0.00050136,120]
[377170453,1754266272867,-836.44,0.00050136,120]
[377170454,1754266272877,-400.0,0.00050136,120]
[377170455,1754266272887,-400.0,0.00050136,120]
[377170456,1754266272896,-400.0,0.00050136,120]
[377170457,1754266272906,-477.59,0.00050136,120]
[377170458,1754266272915,-684.05,0.00050136,120]
[377170459,1754266272924,-615.77,0.00050136,120]
[377170460,1754266272933,-584.52,0.00050136,120]
[377170461,1754266272943,-400.0,0.00050136,120]
[377170462,1754266272952,-489.14,0.00050136,120]
[377170463,1754266272961,-400.0,0.00050136,120]
[377170464,1754266272971,-868.81,0.00050136,120]
[377170465,1754266272980,-690.52,0.00050136,60]
[377170466,1754266272990,-420.51,0.00050136,120]
[377170467,1754266273001,-439.87,0.00050136,120]
[377170468,1754266273011,-702.58,0.00050136,120]
[377170469,1754266273021,-400.0,0.00050136,120]
[377170470,1754266273030,-603.37,0.00050136,120]
[377170471,1754266273040,-400.0,0.00050136,120]
[377170472,1754266273052,-555.17,0.00050136,120]
[377170473,1754266273067,-400.0,0.00050136,120]
[377170474,1754266273080,-531.0,0.00050136,120]
[377170475,1754266273091,-445.54,0.00050136,120]
[377170476,1754266273103,-400.0,0.00050136,120]
[377170477,1754266273116,-625.64,0.00050136,120]
[377170478,1754266273129,-1465.42,0.00050136,120]
[377170479,1754266273143,-992.0,0.00050136,120]
[377170480,1754266273157,-400.0,0.00050136,120]
[377170481,1754266273169,-400.0,0.00050136,120]
[377170482,1754266273181,-614.41,0.00050136,120]
[377170483,1754266273195,-638.57,0.00050136,120]
[377170484,1754266273207,-400.0,0.00050136,120]
[377170485,1754266273221,-400.0,0.00050136,120]
[377170486,1754266273234,-400.0,0.00050136,120]
[377170487,1754266273248,-630.95,0.00050136,120]
[377170488,1754266273261,-1024.51,0.00050136,120]
[377170489,1754266273276,-513.84,0.00050136,120]
[377170490,1754266273289,-400.0,0.00050136,120]
[377170491,1754266273302,-400.0,0.00050136,120]
[377170492,1754266273315,-400.0,0.00050136,120]
[377170493,1754266273328,-510.13,0.00050136,120]
[377170494,1754266273341,-473.08,0.00050136,60]
[377170495,1754266273354,-400.0,0.00050136,120]
[377170496,1754266273367,-400.0,0.00050136,120]
[377170497,1754266273379,-789.14,0.00050136,120]
[377170498,1754266273392,-670.88,0.00050136,120]
[377170499,1754266273405,-400.0,0.00050136,120]
[377170500,1754266273420,-491.05,0.00050136,120]
[377170501,1754266273433,-403.38938951,0.00050136,120]
[377170502,1754266273446,-400.0,0.00050136,120]
[377170503,1754266273458,-670.31,0.00050136,120]
[377170504,1754266273468,-400.0,0.00050136,120]
[377170505,1754266273480,-567.58,0.00050136,120]
[377170506,1754266273494,-400.0,0.00050136,120]
[377170507,1754266273509,-1338.8,0.00050136,120]
[377170508,1754266273521,-400.0,0.00050136,120]
[377170509,1754266273532,-1146.97,0.00050136,120]
[377170510,1754266273542,-400.0,0.00050136,120]
[377170511,1754266273555,-400.0,0.00050136,120]
[377170512,1754266273569,-604.37,0.00050136,120]
[377170513,1754266273584,-1094.27,0.00050136,120]
[377170514,1754266273597,-1247.42,0.00050136,120]
[377170515,1754266273607,-488.78,0.00050136,120]
[377170516,1754266273618,-400.0,0.00050136,120]
[377170517,1754266273633,-691.49,0.00050136,60]
[377170518,1754266273644,-400.0,0.00050136,120]
[377170519,1754266273655,-400.0,0.00050136,120]
[377170520,1754266273667,-1100.26,0.00050136,120]
[377170521,1754266273680,-400.0,0.00050136,120]
[377170522,1754266273692,-400.0,0.00050136,120]
[377170523,1754266273704,-3139.17,0.00050136,120]
[377170524,1754266273716,-1448.55,0.00050136,120]
[377170525,1754266273729,-400.0,0.00050136,120]
[377170526,1754266273741,-400.0,0.00050136,120]
[377170527,1754266273755,-448.93,0.00050136,120]
[377170528,1754266273767,-300.0,0.00050136,120]
[377170529,1754266273779,-1098.45,0.00050136,120]
[377170530,1754266273792,-712.17,0.00050136,120]
[377170531,1754266273804,-400.0,0.00050136,120]
[377170532,1754266273816,-607.98,0.00050136,120]
[377170533,1754266273828,-400.0,0.00050136,120]
[377170534,1754266273840,-400.0,0.00050136,120]
[377170535,1754266273852,-400.0,0.00050136,120]
[377170536,1754266273863,-400.0,0.00050136,120]
[377170537,1754266273876,-400.0,0.00050136,120]
[377170538,1754266273888,-400.0,0.00050136,120]
[377170539,1754266273899,-478.08,0.00050136,120]
[377170540,1754266273910,-400.0,0.00050136,120]
[377170541,1754266273922,-1237.03,0.00050136,120]
[377170542,1754266273934,-1160.21,0.00050136,120]
[377170543,1754266273946,-400.0,0.00050136,120]
[377170544,1754266273957,-738.45,0.00050136,120]
[377170545,1754266273968,-400.0,0.00050136,120]
[377170546,1754266273980,-400.0,0.00050136,120]
[377170547,1754266273992,-701.08,0.00050136,120]